fUST/lending_fUST_20250306
["ID","MTS","AMOUNT","RATE_DAILY","PERIOD"]
[355480346,1741199434532,-500.0,0.00038356,9]
[355480347,1741199434541,-597.32905734,0.00038356,9]
[355480348,1741199434550,-500.0,0.00038356,2]
[355480349,1741199434559,-500.0,0.00038356,2]
[355480350,1741199434569,-500.0,0.00038356,2]
[355480351,1741199434578,-346.10816355,0.00038356,2]
[355480352,1741199434588,-296.49336089,0.00038356,9]
[355480353,1741199434597,-500.0,0.00038356,9]
[355480354,1741199434607,-500.0,0.00038356,9]
[355480355,1741199434617,-500.0,0.00038356,9]
[355480356,1741199434627,-500.0,0.00038356,9]
[355480357,1741199434636,-500.0,0.00038356,9]
[355480358,1741199434646,-500.0,0.00038356,9]
[355480359,1741199434655,-503.98126436,0.00038356,9]
[355480360,1741199434665,-607.99,0.00038356,9]
[355480361,1741199434675,-500.0,0.00038356,9]
[355480362,1741199434685,-500.0,0.00038356,9]
[355480363,1741199434694,-500.0,0.00038356,9]
[355480364,1741199434703,-500.0,0.00038356,9]
[355480365,1741199434713,-500.0,0.00038356,9]
[355480366,1741199434723,-500.0,0.00038356,9]
[355480367,1741199434732,-500.0,0.00038356,9]
[355480368,1741199434742,-500.0,0.00038356,9]
[355480369,1741199434751,-500.0,0.00038356,9]
[355480370,1741199434760,-500.0,0.00038356,9]
[355480371,1741199434770,-503.97571516,0.00038356,9]
[355480372,1741199434779,-500.0,0.00038356,9]
[355480373,1741199434788,-586.01850568,0.00038356,2]
[355480374,1741199434798,-500.0,0.00038356,9]
[355480375,1741199434807,-500.0,0.00038356,9]
[355480376,1741199434817,-635.65,0.00038356,9]
[355480377,1741199434827,-500.0,0.00038356,9]
[355480378,1741199434836,-502.96052516,0.00038356,9]
[355480379,1741199434846,-500.0,0.00038356,9]
[355480380,1741199434856,-500.0,0.00038356,9]
[355480381,1741199434865,-514.83905766,0.00038356,9]
[355480382,1741199434875,-500.0,0.00038356,9]
[355480383,1741199434884,-501.48753308,0.00038356,9]
[355480384,1741199434894,-500.0,0.00038356,9]
[355480385,1741199434904,-500.0,0.00038356,9]
[355480386,1741199434913,-500.0,0.00038356,9]
[355480387,1741199434923,-501.08504178,0.00038356,9]
[355480388,1741199434933,-403.49537679,0.00038356,9]
[355480389,1741199434943,-542.28040176,0.00038356,9]
[355480390,1741199434952,-500.0,0.00038356,9]
[355480391,1741199434963,-500.0,0.00038356,9]
[355480392,1741199434972,-500.0,0.00038356,9]
[355480393,1741199434983,-150.0,0.00038356,2]
[355480394,1741199434994,-500.0,0.00038356,9]
[355480395,1741199435004,-500.0,0.00038356,9]
[355480396,1741199435013,-500.0,0.00038356,9]
[355480397,1741199435023,-500.0,0.00038356,9]
[355480398,1741199435033,-503.34480688,0.00038356,9]
[355480399,1741199435044,-500.0,0.00038356,9]
[355480400,1741199435054,-500.0,0.00038356,9]
[355480401,1741199435065,-500.0,0.00038356,9]
[355480402,1741199435075,-259.69334995,0.00038356,9]
[355480403,1741199435085,-282.49875661,0.00038356,9]
[355480404,1741199435095,-500.0,0.00038356,9]
[355480405,1741199435104,-500.0,0.00038356,9]
[355480406,1741199435114,-500.0,0.00038356,9]
[355480407,1741199435136,-500.0,0.00038356,9]
[355480408,1741199435145,-515.3,0.00038356,9]
[355480409,1741199435156,-505.87452876,0.00038356,9]
[355480410,1741199435166,-500.0,0.00038356,9]
[355480411,1741199435177,-500.0,0.00038356,9]
[355480412,1741199435186,-515.02268492,0.00038356,9]
[355480413,1741199435196,-500.0,0.00038356,9]
[355480414,1741199435208,-500.0,0.00038356,9]
[355480415,1741199435218,-500.0,0.00038356,9]
[355480416,1741199435227,-500.0,0.00038356,9]
[355480417,1741199435236,-529.89642877,0.00038356,9]
[355480418,1741199435246,-504.46071063,0.00038356,9]
[355480419,1741199435255,-500.0,0.00038356,9]
[355480420,1741199435265,-267.8954915,0.00038356,9]
[355480421,1741199435275,-500.0,0.00038356,9]
[355480422,1741199435284,-500.0,0.00038356,9]
[355480423,1741199435294,-500.0,0.00038356,9]
[355480424,1741199435303,-500.0,0.00038356,9]
[355480425,1741199435312,-500.0,0.00038356,9]
[355480426,1741199435322,-436.1515482,0.00038356,9]
[355480427,1741199435331,-500.0,0.00038356,9]
[355480428,1741199435341,-500.0,0.00038356,9]
[355480429,1741199435354,-500.0,0.00038356,9]
[355480430,1741199435364,-500.0,0.00038356,9]
[355480431,1741199435375,-500.0,0.00038356,9]
[355480432,1741199435385,-500.0,0.00038356,9]
[355480433,1741199435395,-628.72590273,0.00038356,9]
[355480434,1741199435405,-500.0,0.00038356,9]
[355480435,1741199435415,-159.97015006,0.00038356,9]
[355480436,1741199435634,-500.0,0.00038356,9]
[355480437,1741199435646,-500.0,0.00038356,9]
[355480438,1741199435656,-500.0,0.00038356,9]
[355480439,1741199435666,-500.0,0.00038356,9]
[355480440,1741199435677,-500.0,0.00038356,9]
[355480441,1741199435687,-500.0,0.00038356,9]
[355480442,1741199435698,-522.13512794,0.00038356,9]
[355480443,1741199435707,-512.12584188,0.00038356,9]
[355480444,1741199435717,-500.0,0.00038356,9]
[355480445,1741199435727,-574.55180255,0.00038356,9]
[355480446,1741199435736,-500.0,0.00038356,9]
[355480447,1741199435745,-500.0,0.00038356,9]
[355480448,1741199435755,-500.0,0.00038356,9]
[355480449,1741199435764,-500.0,0.00038356,9]
[355480450,1741199435774,-500.0,0.00038356,9]
[355480451,1741199435783,-532.13,0.00038356,9]
[355480452,1741199435794,-500.0,0.00038356,9]
[355480453,1741199435803,-500.0,0.00038356,9]
[355480454,1741199435813,-500.0,0.00038356,9]
[355480455,1741199435823,-500.0,0.00038356,9]
[355480456,1741199435832,-500.0,0.00038356,9]
[355480457,1741199435842,-500.0,0.00038356,9]
[355480458,1741199435851,-500.0,0.00038356,9]
[355480459,1741199435861,-624.19,0.00038356,9]
[355480460,1741199435870,-500.0,0.00038356,9]
[355480461,1741199435879,-500.0,0.00038356,9]
[355480462,1741199435889,-500.0,0.00038356,9]
[355480463,1741199435898,-500.0,0.00038356,9]
[355480464,1741199435907,-500.0,0.00038356,9]
[355480465,1741199435916,-500.0,0.00038356,9]
[355480466,1741199435926,-500.0,0.00038356,9]
[355480467,1741199435935,-500.0,0.00038356,9]
[355480468,1741199435944,-500.0,0.00038356,9]
[355480469,1741199435954,-500.0,0.00038356,9]
[355480470,1741199435965,-500.0,0.00038356,9]
[355480471,1741199435975,-500.0,0.00038356,9]
[355480472,1741199435985,-190.57021611,0.00038356,9]
[355480473,1741199435995,-500.0,0.00038356,9]
[355480474,1741199436005,-500.0,0.00038356,9]
[355480475,1741199436014,-763.35,0.00038356,9]
[355480476,1741199436024,-500.0,0.00038356,9]
[355480477,1741199436035,-500.0,0.00038356,9]
[355480478,1741199436044,-500.0,0.00038356,9]
[355480479,1741199436055,-507.3910062,0.00038356,9]
[355480480,1741199436065,-500.0,0.00038356,9]
[355480481,1741199436075,-510.6,0.00038356,9]
[355480482,1741199436085,-500.0,0.00038356,9]
[355480483,1741199436095,-633.09,0.00038356,9]
[355480484,1741199436104,-500.0,0.00038356,9]
[355480485,1741199436113,-500.0,0.00038356,9]
[355480486,1741199436123,-500.0,0.00038356,9]
[355480487,1741199436133,-508.25981188,0.00038356,9]
[355480488,1741199436142,-500.0,0.00038356,9]
[355480489,1741199436152,-500.0,0.00038356,9]
[355480490,1741199436162,-500.0,0.00038356,9]
[355480491,1741199436171,-500.0,0.00038356,9]
[355480492,1741199436181,-500.0,0.00038356,9]
[355480493,1741199436191,-509.97607865,0.00038356,9]
[355480494,1741199436200,-500.5455978,0.00038356,9]
[355480495,1741199436210,-500.0,0.00038356,9]
[355480496,1741199436219,-500.0,0.00038356,9]
[355480497,1741199436229,-586.31949548,0.00038356,9]
[355480498,1741199436238,-500.0,0.00038356,9]
[355480499,1741199436247,-507.48368494,0.00038356,9]
[355480500,1741199436256,-529.37943619,0.00038356,9]
[355480501,1741199436266,-500.0,0.00038356,9]
[355480502,1741199436275,-502.00708835,0.00038356,9]
[355480503,1741199436284,-511.15628478,0.00038356,9]
[355480504,1741199436294,-510.81350676,0.00038356,9]
[355480505,1741199436303,-613.24,0.00038356,9]
[355480506,1741199436312,-500.0,0.00038356,9]
[355480507,1741199436322,-500.0,0.00038356,9]
[355480508,1741199436331,-502.50316653,0.00038356,9]
[355480509,1741199436341,-500.0,0.00038356,9]
[355480510,1741199436350,-500.0,0.00038356,9]
[355480511,1741199436359,-500.0,0.00038356,9]
[355480512,1741199436369,-500.0,0.00038356,9]
[355480513,1741199436378,-500.0,0.00038356,9]
[355480514,1741199436388,-500.0,0.00038356,9]
[355480515,1741199436398,-500.0,0.00038356,9]
[355480516,1741199436407,-500.0,0.00038356,9]
[355480517,1741199436417,-500.0,0.00038356,9]
[355480518,1741199436426,-164.74888284,0.00038356,9]
[355480519,1741199436435,-500.0,0.00038356,9]
[355480520,1741199436445,-500.0,0.00038356,9]
[355480521,1741199436454,-500.0,0.00038356,9]
[355480522,1741199436464,-500.0,0.00038356,9]
[355480523,1741199436474,-500.0,0.00038356,9]
[355480524,1741199436483,-500.0,0.00038356,5]
[355480525,1741199436493,-500.0,0.00038356,9]
[355480526,1741199436502,-500.0,0.00038356,9]
[355480527,1741199436512,-500.0,0.00038356,9]
[355480528,1741199436522,-500.0,0.00038356,9]
[355480529,1741199436532,-500.0,0.00038356,9]
[355480530,1741199436542,-402.58856781,0.00038356,9]
[355480531,1741199436552,-500.0,0.00038356,9]
[355480532,1741199436561,-500.0,0.00038356,9]
[355480533,1741199436571,-500.0,0.00038356,9]
[355480534,1741199436580,-561.69,0.00038356,9]
[355480535,1741199436590,-500.0,0.00038356,9]
[355480536,1741199436600,-500.0,0.00038356,9]
[355480537,1741199436611,-506.53774158,0.00038356,9]
[355480538,1741199436621,-503.75485045,0.00038356,9]
[355480539,1741199436631,-500.0,0.00038356,9]
[355480540,1741199436640,-500.0,0.00038356,9]
[355480541,1741199436650,-500.0,0.00038356,9]
[355480542,1741199436659,-500.0,0.00038356,9]
[355480543,1741199436668,-500.0,0.00038356,9]
[355480544,1741199436677,-500.0,0.00038356,9]
[355480545,1741199436686,-306.74359789,0.00038356,9]
[355480546,1741199436696,-500.0,0.00038356,9]
[355480547,1741199436705,-500.0,0.00038356,9]
[355480548,1741199436714,-501.53690518,0.00038356,9]
[355480549,1741199436723,-500.0,0.00038356,9]
[355480550,1741199436732,-500.0,0.00038356,9]
[355480551,1741199436742,-500.0,0.00038356,9]
[355480552,1741199436753,-1020.48,0.00038356,9]
[355480553,1741199436763,-500.0,0.00038356,9]
[355480554,1741199436772,-500.0,0.00038356,9]
[355480555,1741199436782,-500.0,0.00038356,9]
[355480556,1741199436791,-769.82,0.00038356,9]
[355480557,1741199436801,-500.0,0.00038356,9]
[355480558,1741199436811,-508.8795629,0.00038356,9]
[355480559,1741199436822,-500.0,0.00038356,9]
[355480560,1741199436832,-500.0,0.00038356,9]
[355480561,1741199436842,-500.0,0.00038356,9]
[355480562,1741199436851,-500.0,0.00038356,9]
[355480563,1741199436861,-500.0,0.00038356,9]
[355480564,1741199436870,-500.0,0.00038356,9]
[355480565,1741199436879,-500.0,0.00038356,9]
[355480566,1741199436889,-500.0,0.00038356,9]
[355480567,1741199436899,-500.0,0.00038356,9]
[355480568,1741199436908,-500.0,0.00038356,9]
[355480569,1741199436918,-500.0,0.00038356,9]
[355480570,1741199436927,-500.0,0.00038356,9]
[355480571,1741199436936,-500.0,0.00038356,9]
[355480572,1741199436946,-500.0,0.00038356,9]
[355480573,1741199436957,-500.0,0.00038356,9]
[355480574,1741199436966,-500.0,0.00038356,9]
[355480575,1741199436975,-500.0,0.00038356,9]
[355480576,1741199436989,-500.0,0.00038356,9]
[355480577,1741199436998,-500.0,0.00038356,9]
[355480578,1741199437007,-500.0,0.00038356,9]
[355480579,1741199437016,-500.0,0.00038356,9]
[355480580,1741199437027,-500.0,0.00038356,9]
[355480581,1741199437036,-500.0,0.00038356,9]
[355480582,1741199437045,-500.0,0.00038356,120]
[355480583,1741199437056,-500.0,0.00038356,9]
[355480584,1741199437065,-559.93041302,0.00038356,9]
[355480585,1741199437075,-500.0,0.00038356,9]
[355480586,1741199437084,-500.0,0.00038356,9]
[355480587,1741199437094,-500.0,0.00038356,9]
[355480588,1741199437103,-503.11527696,0.00038356,9]
[355480589,1741199437112,-500.0,0.00038356,9]
[355480590,1741199437135,-500.0,0.00038356,9]
[355480591,1741199437145,-290.49847181,0.00038356,9]
[355480592,1741199437154,-500.0,0.00038356,9]
[355480593,1741199437163,-670.77,0.00038356,9]
[355480594,1741199437176,-500.0,0.00038356,9]
[355480595,1741199437185,-500.0,0.00038356,9]
[355480596,1741199437194,-500.0,0.00038356,9]
[355480597,1741199437204,-696.48,0.00038356,9]
[355480598,1741199437213,-500.0,0.00038356,9]
[355480599,1741199437223,-500.0,0.00038356,9]
[355480600,1741199437233,-500.0,0.00038356,9]
[355480601,1741199437242,-500.0,0.00038356,9]
[355480602,1741199437252,-500.0,0.00038356,9]
[355480603,1741199437261,-500.0,0.00038356,9]
[355480604,1741199437271,-500.0,0.00038356,9]
[355480605,1741199437281,-500.0,0.00038356,9]
[355480606,1741199437291,-508.63226057,0.00038356,9]
[355480607,1741199437300,-500.0,0.00038356,9]
[355480608,1741199437309,-500.0,0.00038356,9]
[355480609,1741199437318,-500.0,0.00038356,9]
[355480610,1741199437328,-500.0,0.00038356,9]
[355480611,1741199437338,-500.0,0.00038356,9]
[355480612,1741199437347,-500.0,0.00038356,9]
[355480613,1741199437356,-500.0,0.00038356,9]
[355480614,1741199437366,-500.0,0.00038356,9]
[355480615,1741199437376,-500.0,0.00038356,9]
[355480616,1741199437386,-525.96,0.00038356,9]
[355480617,1741199437395,-500.0,0.00038356,9]
[355480618,1741199437404,-500.0,0.00038356,9]
[355480619,1741199437414,-505.16916882,0.00038356,9]
[355480620,1741199437424,-1001.25,0.00038356,9]
[355480621,1741199437434,-500.0,0.00038356,9]
[355480622,1741199437443,-500.0,0.00038356,9]
[355480623,1741199437453,-599.73479013,0.00038356,9]
[355480624,1741199437462,-489.28498655,0.00038356,9]
[355480625,1741199437471,-500.0,0.00038356,9]
[355480626,1741199437481,-329.54949911,0.00038356,9]
[355480627,1741199437490,-500.0,0.00038356,9]
[355480628,1741199437499,-489.7277911,0.00038356,9]
[355480629,1741199437509,-505.84093215,0.00038356,9]
[355480630,1741199437518,-948.13,0.00038356,9]
[355480631,1741199437528,-500.0,0.00038356,9]
[355480632,1741199437537,-510.25093208,0.00038356,9]
[355480633,1741199437547,-500.0,0.00038356,9]
[355480634,1741199437556,-883.82,0.00038356,9]
[355480635,1741199437566,-500.0,0.00038356,9]
[355480636,1741199437575,-500.0,0.00038356,9]
[355480637,1741199437585,-554.29193793,0.00038356,9]
[355480638,1741199437594,-500.0,0.00038356,9]
[355480639,1741199437604,-500.0,0.00038356,9]
[355480640,1741199437614,-500.0,0.00038356,9]
[355480641,1741199437635,-500.0,0.00038356,9]
[355480642,1741199437645,-1447.54,0.00038356,9]
[355480643,1741199437654,-506.90552926,0.00038356,9]
[355480644,1741199437667,-500.0,0.00038356,9]
[355480645,1741199437676,-500.0,0.00038356,9]
[355480646,1741199437685,-500.0,0.00038356,9]
[355480647,1741199437695,-500.0,0.00038356,9]
[355480648,1741199437704,-500.0,0.00038356,9]
[355480649,1741199437713,-500.0,0.00038356,9]
[355480650,1741199437722,-500.0,0.00038356,9]
[355480651,1741199437732,-500.0,0.00038356,9]
[355480652,1741199437741,-500.0,0.00038356,9]
[355480653,1741199437750,-526.16,0.00038356,9]
[355480654,1741199437760,-500.0,0.00038356,9]
[355480655,1741199437769,-500.0,0.00038356,9]
[355480656,1741199437779,-500.0,0.00038356,9]
[355480657,1741199437788,-500.0,0.00038356,9]
[355480658,1741199437797,-500.0,0.00038356,9]
[355480659,1741199437806,-500.0,0.00038356,9]
[355480660,1741199437816,-500.0,0.00038356,9]
[355480661,1741199437826,-500.0,0.00038356,9]
[355480662,1741199437835,-500.0,0.00038356,9]
[355480663,1741199437844,-458.76297038,0.00038356,9]
[355480664,1741199437853,-504.21,0.00038356,9]
[355480665,1741199437863,-500.0,0.00038356,9]
[355480666,1741199437872,-500.0,0.00038356,9]
[355480667,1741199437882,-500.0,0.00038356,9]
[355480668,1741199437891,-500.0,0.00038356,9]
[355480669,1741199437900,-500.0,0.00038356,9]
[355480670,1741199437910,-500.0,0.00038356,9]
[355480671,1741199437919,-500.0,0.00038356,9]
[355480672,1741199437929,-503.85577646,0.00038356,9]
[355480673,1741199437938,-519.58,0.00038356,9]
[355480674,1741199437947,-500.0,0.00038356,9]
[355480675,1741199437957,-500.0,0.00038356,9]
[355480676,1741199437966,-500.0,0.00038356,9]
[355480677,1741199437975,-923.32,0.00038356,9]
[355480678,1741199437987,-500.0,0.00038356,9]
[355480679,1741199437997,-500.0,0.00038356,9]
[355480680,1741199438007,-502.40054085,0.00038356,9]
[355480681,1741199438017,-505.64932111,0.00038356,9]
[355480682,1741199438029,-503.58219396,0.00038356,9]
[355480683,1741199438039,-500.0,0.00038356,7]
[355480684,1741199438049,-501.58,0.00038356,9]
[355480685,1741199438060,-832.14,0.00038356,9]
[355480686,1741199438070,-501.0578493,0.00038356,9]
[355480687,1741199438079,-500.0,0.00038356,9]
[355480688,1741199438088,-500.0,0.00038356,9]
[355480689,1741199438098,-502.49983906,0.00038356,9]
[355480690,1741199438107,-500.0,0.00038356,9]
[355480691,1741199438119,-500.0,0.00038356,9]
[355480692,1741199438128,-500.0,0.00038356,9]
[355480693,1741199438138,-502.13448407,0.00038356,9]
[355480694,1741199438150,-502.13960502,0.00038356,9]
[355480695,1741199438159,-500.0,0.00038356,9]
[355480696,1741199438169,-500.0,0.00038356,9]
[355480697,1741199438178,-500.0,0.00038356,9]
[355480698,1741199438187,-500.0,0.00038356,9]
[355480699,1741199438197,-500.0,0.00038356,9]
[355480700,1741199438206,-500.0,0.00038356,9]
[355480701,1741199438217,-500.0,0.00038356,9]
[355480702,1741199438227,-500.0,0.00038356,9]
[355480704,1741199438236,-396.22058247,0.00038356,9]
[355480706,1741199438246,-500.0,0.00038356,9]
[355480708,1741199438257,-500.0,0.00038356,9]
[355480709,1741199438267,-420.98378824,0.00038356,9]
[355480814,1741199439372,-79.01621176,0.00038356,9]
[355480816,1741199439382,-500.0,0.00038356,9]
[355480818,1741199439391,-986.24,0.00038356,9]
[355480820,1741199439400,-505.58115245,0.00038356,9]
[355480822,1741199439409,-678.02,0.00038356,9]
[355480823,1741199439418,-500.0,0.00038356,9]
[355480825,1741199439428,-503.01309158,0.00038356,9]
[355480827,1741199439438,-500.0,0.00038356,9]
[355480829,1741199439446,-500.0,0.00038356,120]
[355480831,1741199439455,-502.6409659,0.00038356,9]
[355480833,1741199439465,-500.0,0.00038356,9]
[355480835,1741199439475,-500.0,0.00038356,9]
[355480837,1741199439484,-500.0,0.00038356,9]
[355480839,1741199439494,-500.0,0.00038356,9]
[355480841,1741199439503,-502.62017912,0.00038356,9]
[355480842,1741199439513,-500.0,0.00038356,9]
[355480844,1741199439522,-695.18,0.00038356,9]
[355480846,1741199439532,-1921.11,0.00038356,9]
[355480848,1741199439542,-500.0,0.00038356,9]
[355480850,1741199439551,-500.0,0.00038356,9]
[355480852,1741199439561,-672.68,0.00038356,9]
[355480854,1741199439571,-503.04932315,0.00038356,9]
[355480856,1741199439581,-500.0,0.00038356,9]
[355480858,1741199439591,-500.0,0.00038356,9]
[355480860,1741199439600,-1071.65,0.00038356,9]
[355480862,1741199439609,-603.83,0.00038356,9]
[355480864,1741199439620,-503.19770243,0.00038356,9]
[355480866,1741199439629,-502.46710506,0.00038356,9]
[355480867,1741199439638,-500.0,0.00038356,9]
[355480869,1741199439647,-4724.62,0.00038356,9]
[355480871,1741199439657,-500.0,0.00038356,9]
[355480873,1741199439666,-500.0,0.00038356,9]
[355480875,1741199439675,-6783.98,0.00038356,9]
[355480877,1741199439685,-500.0,0.00038356,9]
[355480879,1741199439695,-500.0,0.00038356,9]
[355480881,1741199439704,-648.44,0.00038356,9]
[355480882,1741199439714,-500.0,0.00038356,9]
[355480884,1741199439724,-500.0,0.00038356,9]
[355480886,1741199439734,-500.0,0.00038356,9]
[355480888,1741199439746,-468.89391572,0.00038356,9]
[355480890,1741199439756,-500.0,0.00038356,9]
[355480892,1741199439765,-83043.63,0.00038356,7]
[355480894,1741199439774,-294.81283306,0.00038356,9]
[355480895,1741199439783,-1902.25,0.00038356,9]
[355480896,1741199439792,-173.03983058,0.00038356,9]
[355480897,1741199439801,-500.0,0.00038356,9]
[355480898,1741199439810,-288.50911103,0.00038356,9]
[355480899,1741199439822,-228.39674557,0.00038356,9]
[355480900,1741199439831,-507.35641694,0.00038356,9]
[355480901,1741199439840,-500.0,0.00038356,9]
[355480902,1741199439849,-500.0,0.00038356,9]
[355480903,1741199439858,-500.0,0.00038356,9]
[355480904,1741199439867,-1312.07,0.00038356,9]
[355480905,1741199439875,-500.0,0.00038356,9]
[355480906,1741199439885,-500.0,0.00038356,9]
[355480907,1741199439894,-291.81884212,0.00038356,9]
[355480908,1741199439903,-1289.95,0.00038356,9]
[355480909,1741199439912,-354.26304312,0.00038356,9]
[355480910,1741199439921,-505.46686136,0.00038356,9]
[355480911,1741199439930,-500.0,0.00038356,9]
[355480912,1741199439939,-500.0,0.00038356,9]
[355480913,1741199439948,-500.0,0.00038356,9]
[355480914,1741199439958,-2935.74,0.00038356,9]
[355480915,1741199439969,-500.0,0.00038356,9]
[355480916,1741199439979,-2186.68,0.00038356,9]
[355480917,1741199439992,-793.54,0.00038356,9]
[355480918,1741199440001,-1301.76,0.00038356,9]
[355480919,1741199440011,-509.97865389,0.00038356,9]
[355480920,1741199440021,-500.0,0.00038356,9]
[355480921,1741199440030,-500.0,0.00038356,9]
[355480922,1741199440040,-501.59180964,0.00038356,9]
[355480923,1741199440049,-500.0,0.00038356,9]
[355480924,1741199440058,-500.0,0.00038356,9]
[355480925,1741199440070,-150.0,0.00038356,2]
[355480926,1741199440079,-500.0,0.00038356,9]
[355480927,1741199440088,-500.0,0.00038356,9]
[355480928,1741199440098,-500.0,0.00038356,9]
[355480929,1741199440107,-607.92881354,0.00038356,9]
[355480930,1741199440116,-533.0,0.00038356,9]
[355480931,1741199440125,-500.0,0.00038356,9]
[355480932,1741199440135,-690.71,0.00038356,9]
[355480933,1741199440144,-500.0,0.00038356,9]
[355480934,1741199440153,-500.0,0.00038356,9]
[355480935,1741199440163,-541.37077394,0.00038356,9]
[355480936,1741199440172,-500.0,0.00038356,9]
[355480937,1741199440181,-500.0,0.00038356,9]
[355480938,1741199440190,-500.0,0.00038356,9]
[355480939,1741199440200,-533.14,0.00038356,9]
[355480940,1741199440208,-500.0,0.00038356,9]
[355480941,1741199440218,-5433.15,0.00038356,9]
[355480942,1741199440227,-903.51,0.00038356,9]
[355480944,1741199440237,-500.0,0.00038356,9]
[355480945,1741199440246,-928.38,0.00038356,9]
[355480946,1741199440255,-500.0,0.00038356,9]
[355480948,1741199440264,-504.79004687,0.00038356,9]
[355480949,1741199440274,-781.04,0.00038356,9]
[355480951,1741199440283,-500.0,0.00038356,9]
[355480953,1741199440292,-500.0,0.00038356,9]
[355480955,1741199440302,-500.0,0.00038356,9]
[355480957,1741199440311,-500.0,0.00038356,9]
[355480959,1741199440320,-500.0,0.00038356,9]
[355480961,1741199440330,-500.0,0.00038356,9]
[355480963,1741199440339,-500.0,0.00038356,9]
[355480965,1741199440348,-500.0,0.00038356,9]
[355480967,1741199440357,-500.0,0.00038356,9]
[355480969,1741199440367,-500.0,0.00038356,9]
[355480971,1741199440376,-2043.91,0.00038356,9]
[355480973,1741199440385,-500.0,0.00038356,9]
[355480975,1741199440395,-509.18548445,0.00038356,9]
[355480977,1741199440405,-1406.0,0.00038356,9]
[355480979,1741199440414,-500.0,0.00038356,9]
[355480981,1741199440423,-699.07,0.00038356,9]
[355480983,1741199440433,-10802.43,0.00038356,9]
[355480985,1741199440442,-511.26680849,0.00038356,9]
[355480987,1741199440452,-500.0,0.00038356,9]
[355480989,1741199440461,-500.0,0.00038356,9]
[355480991,1741199440471,-500.0,0.00038356,9]
[355480993,1741199440480,-809.31,0.00038356,9]
[355480995,1741199440489,-1217.74,0.00038356,9]
[355480997,1741199440499,-500.0,0.00038356,9]
[355480999,1741199440508,-500.0,0.00038356,9]
[355481001,1741199440518,-500.0,0.00038356,9]
[355481003,1741199440527,-500.0,0.00038356,9]
[355481005,1741199440536,-500.0,0.00038356,9]
[355481007,1741199440545,-500.0,0.00038356,9]
[355481009,1741199440555,-500.0,0.00038356,9]
[355481011,1741199440564,-12009.0,0.00038356,9]
[355481013,1741199440574,-500.0,0.00038356,9]
[355481015,1741199440583,-500.0,0.00038356,9]
[355481017,1741199440593,-546.16,0.00038356,9]
[355481019,1741199440603,-1330.66,0.00038356,9]
[355481021,1741199440613,-1330.66,0.00038356,9]
[355481023,1741199440623,-548.46,0.00038356,9]
[355481025,1741199440633,-1330.66,0.00038356,9]
[355481027,1741199440642,-500.0,0.00038356,9]
[355481029,1741199440651,-1330.66,0.00038356,9]
[355481031,1741199440661,-1330.66,0.00038356,9]
[355481033,1741199440670,-1330.66,0.00038356,9]
[355481035,1741199440680,-1330.66,0.00038356,9]